fUST/lending_fUST_20240921
["ID","MTS","AMOUNT","RATE_DAILY","PERIOD"]
[338712065,1726895439109,-832.11077955,0.00014068,2]
[338712066,1726895439118,-832.11077955,0.00014068,2]
[338712067,1726895439128,-832.11077955,0.00014068,2]
[338712068,1726895439137,-832.11077955,0.00014068,2]
[338712069,1726895439147,-832.11077955,0.00014068,2]
[338712070,1726895439156,-832.11077955,0.00014068,2]
[338712071,1726895439165,-832.11077955,0.00014068,2]
[338712072,1726895439175,-832.11077955,0.00014068,2]
[338712073,1726895439184,-832.11077955,0.00014068,2]
[338712074,1726895439194,-832.11077955,0.00014068,2]
[338712075,1726895439204,-832.11077955,0.00014068,2]
[338712076,1726895439213,-832.11077955,0.00014068,2]
[338712077,1726895439223,-832.11077955,0.00014068,2]
[338712078,1726895439232,-832.11077955,0.00014068,2]
[338712079,1726895439243,-832.11077955,0.00014068,2]
[338712080,1726895439256,-832.11077955,0.00014068,2]
[338712081,1726895439266,-832.11077955,0.00014068,2]
[338712082,1726895439275,-832.11077955,0.00014068,2]
[338712083,1726895439285,-832.11077955,0.00014068,2]
[338712084,1726895439294,-832.11077955,0.00014068,2]
[338712085,1726895439304,-832.11077955,0.00014068,2]
[338712086,1726895439314,-832.11077955,0.00014068,2]
[338712087,1726895439325,-832.11077955,0.00014068,2]
[338712088,1726895439335,-832.11077955,0.00014068,2]
[338712089,1726895439345,-832.11077955,0.00014068,2]
[338712090,1726895439355,-832.11077955,0.00014068,2]
[338712091,1726895439364,-832.11077955,0.00014068,2]
[338712092,1726895439373,-542.38,0.00014069,2]
[338712094,1726895439383,-500.0,0.00014069,2]
[338712095,1726895439392,-500.0,0.00014069,2]
[338712096,1726895439401,-509.77948463,0.00014069,2]
[338712097,1726895439410,-1397.54,0.00014069,2]
[338712098,1726895439419,-500.0,0.00014069,2]
[338712099,1726895439429,-517.19344323,0.00014069,2]
[338712100,1726895439438,-525.71681818,0.00014069,2]
[338712102,1726895439448,-500.0,0.00014069,2]
[338712103,1726895439457,-500.0,0.00014069,2]
[338712104,1726895439466,-561.21385688,0.00014069,2]
[338712105,1726895439478,-500.0,0.00014069,2]
[338712106,1726895439489,-500.0,0.00014069,2]
[338712107,1726895439499,-500.0,0.00014069,2]
[338712109,1726895439508,-853.5,0.00014069,2]
[338712111,1726895439518,-506.94622574,0.00014069,2]
[338712113,1726895439527,-500.0,0.00014069,2]
[338712114,1726895439536,-500.0,0.00014069,2]
[338712115,1726895439545,-507.40738015,0.00014069,2]
[338712116,1726895439553,-507.19466171,0.00014069,2]
[338712118,1726895439562,-500.0,0.00014069,2]
[338712120,1726895439571,-296.42223312,0.00014069,2]
[338712121,1726895439581,-21695.59,0.00014069,2]
[338712122,1726895439590,-500.0,0.00014069,2]
[338712123,1726895439599,-500.0,0.0001407,2]
[338712124,1726895439608,-500.0,0.0001407,2]
[338712125,1726895439618,-500.0,0.0001407,2]
[338712126,1726895439627,-500.0,0.0001407,2]
[338712127,1726895439636,-497.27009121,0.0001407,2]
[338712128,1726895439645,-500.0,0.0001407,2]
[338712129,1726895439654,-500.0,0.0001407,2]
[338712130,1726895439664,-3334.39,0.0001407,2]
[338712131,1726895439674,-500.0,0.0001407,2]
[338712132,1726895439683,-641.48,0.0001407,2]
[338712133,1726895439692,-449.55453048,0.0001407,2]
[338712134,1726895439702,-364.86,0.0001407,2]
[338712135,1726895439710,-425.63,0.0001407,2]
[338712136,1726895439719,-500.0,0.0001407,2]
[338712138,1726895439729,-500.0,0.0001407,2]
[338712140,1726895439738,-500.0,0.0001407,2]
[338712142,1726895439747,-500.0,0.0001407,2]
[338712144,1726895439757,-500.0,0.0001407,2]
[338712146,1726895439766,-500.0,0.0001407,2]
[338712148,1726895439775,-550.90211848,0.0001407,2]
[338712150,1726895439785,-611.7,0.0001407,2]
[338712152,1726895439794,-510.43491353,0.0001407,2]
[338712154,1726895439803,-500.0,0.0001407,2]
[338712156,1726895439812,-500.0,0.0001407,2]
[338712158,1726895439821,-500.0,0.0001407,2]
[338712160,1726895439830,-583.9832279,0.0001407,2]
[338712162,1726895439839,-500.0,0.0001407,2]
[338712164,1726895439848,-506.96049133,0.0001407,2]
[338712166,1726895439857,-508.82811464,0.0001407,2]
[338712168,1726895439866,-505.46112029,0.0001407,2]
[338712170,1726895439875,-500.0,0.0001407,2]
[338712172,1726895439884,-500.0,0.0001407,2]
[338712174,1726895439894,-502.71081138,0.0001407,2]
[338712176,1726895439903,-500.0,0.0001407,2]
[338712178,1726895439912,-524.1130697,0.0001407,2]
[338712180,1726895439922,-507.72725761,0.0001407,2]
[338712182,1726895439931,-500.0,0.0001407,2]
[338712184,1726895439940,-500.0,0.0001407,2]
[338712186,1726895439949,-500.0,0.0001407,2]
[338712188,1726895439958,-344.5,0.0001407,2]
[338712190,1726895439967,-500.0,0.0001407,2]
[338712192,1726895439976,-500.0,0.0001407,2]
[338712194,1726895439987,-419.67,0.0001407,2]
[338712196,1726895439996,-560.78078419,0.0001407,2]
[338712198,1726895440006,-539.45263553,0.0001407,2]
[338712200,1726895440015,-1290.66,0.0001407,2]
[338712202,1726895440023,-500.0,0.0001407,2]
[338712204,1726895440032,-500.0,0.00014071,2]
[338712206,1726895440042,-500.0,0.00014071,2]
[338712208,1726895440052,-507.33251565,0.00014071,2]
[338712210,1726895440061,-500.0,0.00014071,2]
[338712212,1726895440071,-500.0,0.00014071,2]
[338712214,1726895440080,-640.1,0.00014071,2]
[338712215,1726895440089,-500.0,0.00014071,2]
[338712217,1726895440099,-500.0,0.00014071,2]
[338712219,1726895440109,-500.0,0.00014071,2]
[338712221,1726895440118,-504.96488149,0.00014071,2]
[338712223,1726895440127,-502.06430307,0.00014071,2]
[338712225,1726895440136,-402.61811148,0.00014071,2]
[338712227,1726895440146,-502.26652324,0.00014071,2]
[338712229,1726895440155,-500.0,0.00014071,2]
[338712231,1726895440165,-501.77821498,0.00014071,2]
[338712233,1726895440174,-503.06,0.00014071,2]
[338712235,1726895440183,-657.15,0.00014071,2]
[338712237,1726895440192,-515.07282535,0.00014071,2]
[338712239,1726895440201,-500.0,0.00014071,2]
[338712240,1726895440211,-615.52801523,0.00014071,2]
[338712242,1726895440220,-500.0,0.00014071,2]
[338712244,1726895440229,-500.0,0.00014071,2]
[338712246,1726895440238,-500.0,0.00014071,2]
[338712248,1726895440252,-500.0,0.00014071,2]
[338712250,1726895440261,-501.02174649,0.00014071,2]
[338712252,1726895440271,-500.0,0.00014071,2]
[338712254,1726895440280,-500.0,0.00014071,2]
[338712256,1726895440289,-500.0,0.00014071,2]
[338712258,1726895440299,-500.0,0.00014071,2]
[338712260,1726895440308,-286.09915202,0.00014071,2]
[338712262,1726895440317,-500.0,0.00014071,2]
[338712264,1726895440328,-500.0,0.00014071,2]
[338712265,1726895440338,-500.0,0.00014071,2]
[338712267,1726895440347,-500.0,0.00014071,2]
[338712269,1726895440356,-500.0,0.00014071,2]
[338712271,1726895440365,-500.0,0.00014071,2]
[338712273,1726895440374,-512.19292316,0.00014071,2]
[338712275,1726895440383,-500.0,0.00014071,2]
[338712277,1726895440392,-500.0,0.00014071,2]
[338712279,1726895440402,-500.0,0.00014071,2]
[338712281,1726895440411,-500.0,0.00014071,2]
[338712283,1726895440420,-500.0,0.00014071,2]
[338712285,1726895440429,-500.0,0.00014071,2]
[338712287,1726895440439,-500.0,0.00014071,2]
[338712290,1726895440450,-500.0,0.00014071,2]
[338712292,1726895440459,-500.0,0.00014071,2]
[338712294,1726895440471,-502.62352532,0.00014071,2]
[338712296,1726895440482,-920.61,0.00014071,2]
[338712298,1726895440495,-500.0,0.00014071,2]
[338712300,1726895440504,-500.0,0.00014071,2]
[338712302,1726895440515,-500.0,0.00014071,2]
[338712304,1726895440526,-500.0,0.00014071,2]
[338712306,1726895440535,-500.0,0.00014071,2]
[338712309,1726895440547,-500.0,0.00014071,2]
[338712310,1726895440556,-500.0,0.00014071,2]
[338712311,1726895440564,-500.0,0.00014071,2]
[338712312,1726895440575,-500.0,0.00014071,2]
[338712313,1726895440586,-500.0,0.00014071,2]
[338712314,1726895440596,-521.80798341,0.00014071,2]
[338712315,1726895440607,-500.94199245,0.00014071,2]
[338712316,1726895440617,-506.76801947,0.00014071,2]
[338712317,1726895440629,-500.0,0.00014071,2]
[338712318,1726895440638,-500.0,0.00014071,2]
[338712319,1726895440647,-634.9074357,0.00014071,2]
[338712320,1726895440657,-504.2148502,0.00014071,2]
[338712321,1726895440666,-500.0,0.00014071,2]
[338712322,1726895440675,-502.50259892,0.00014071,2]
[338712323,1726895440684,-500.0,0.00014071,2]
[338712324,1726895440693,-500.0,0.00014071,2]
[338712325,1726895440702,-502.47871767,0.00014071,2]
[338712326,1726895440711,-500.0,0.00014071,2]
[338712327,1726895440720,-500.0,0.00014071,2]
[338712328,1726895440730,-629.44713776,0.00014071,2]
[338712329,1726895440741,-619.33,0.00014071,2]
[338712330,1726895440751,-500.0,0.00014071,2]
[338712331,1726895440762,-500.0,0.00014071,2]
[338712332,1726895440772,-418.69,0.00014071,2]
[338712333,1726895440782,-506.58629023,0.00014071,2]
[338712334,1726895440793,-501.7270729,0.00014071,2]
[338712335,1726895440802,-500.0,0.00014071,2]
[338712336,1726895440812,-511.23388861,0.00014071,2]
[338712337,1726895440822,-500.0,0.00014071,2]
[338712338,1726895440834,-500.0,0.00014071,2]
[338712339,1726895440845,-500.0,0.00014071,2]
[338712340,1726895440854,-247.00020312,0.00014071,2]
[338712342,1726895440863,-500.0,0.00014071,2]
[338712343,1726895440872,-500.0,0.00014071,2]
[338712345,1726895440881,-500.0,0.00014071,2]
[338712347,1726895440890,-509.63062192,0.00014071,2]
[338712349,1726895440900,-500.0,0.00014071,2]
[338712351,1726895440909,-596.8875343,0.00014071,2]
[338712353,1726895440919,-500.0,0.00014071,2]
[338712355,1726895440929,-500.0,0.00014071,2]
[338712357,1726895440938,-501.10524683,0.00014071,2]
[338712359,1726895440947,-500.0,0.00014071,2]
[338712361,1726895440956,-503.45060925,0.00014071,2]
[338712363,1726895440966,-500.0,0.00014071,2]
[338712365,1726895440976,-535.96,0.00014071,2]
[338712367,1726895440986,-500.0,0.00014071,2]
[338712369,1726895440995,-500.0,0.00014071,2]
[338712371,1726895441004,-500.0,0.00014071,2]
[338712373,1726895441014,-500.0,0.00014071,2]
[338712375,1726895441024,-836.75,0.00014071,2]
[338712377,1726895441033,-500.0,0.00014071,2]
[338712379,1726895441042,-500.0,0.00014071,2]
[338712381,1726895441051,-500.0,0.00014071,2]
[338712383,1726895441061,-500.0,0.00014071,2]
[338712385,1726895441070,-500.0,0.00014071,2]
[338712387,1726895441079,-500.0,0.00014071,2]
[338712389,1726895441089,-500.0,0.00014071,2]
[338712391,1726895441098,-500.0,0.00014071,2]
[338712393,1726895441107,-468.6276037,0.00014071,2]
[338712395,1726895441116,-508.06467102,0.00014071,2]
[338712397,1726895441125,-500.0,0.00014071,2]
[338712399,1726895441134,-500.0,0.00014071,2]
[338712401,1726895441143,-500.0,0.00014071,2]
[338712403,1726895441152,-500.0,0.00014071,2]
[338712405,1726895441162,-500.0,0.00014071,2]
[338712407,1726895441171,-500.0,0.00014071,2]
[338712409,1726895441180,-500.0,0.00014071,2]
[338712411,1726895441189,-504.48663632,0.00014071,2]
[338712413,1726895441199,-500.0,0.00014071,2]
[338712415,1726895441208,-500.0,0.00014071,2]
[338712417,1726895441218,-504.78121955,0.00014071,2]
[338712419,1726895441229,-500.0,0.00014071,2]
[338712421,1726895441239,-500.0,0.00014071,2]
[338712423,1726895441254,-500.0,0.00014071,2]
[338712425,1726895441265,-500.0,0.00014071,2]
[338712427,1726895441274,-500.0,0.00014071,2]
[338712429,1726895441283,-500.0,0.00014071,2]
[338712431,1726895441294,-373.48159648,0.00014071,2]
[338712433,1726895441304,-500.0,0.00014071,2]
[338712435,1726895441315,-500.0,0.00014071,2]
[338712437,1726895441326,-500.0,0.00014071,2]
[338712439,1726895441335,-500.0,0.00014071,2]
[338712441,1726895441345,-500.0,0.00014071,2]
[338712443,1726895441356,-500.0,0.00014071,2]
[338712445,1726895441367,-500.0,0.00014071,2]
[338712447,1726895441382,-612.0970138,0.00014071,2]
[338712450,1726895441392,-500.0,0.00014071,2]
[338712452,1726895441403,-500.82383129,0.00014071,2]
[338712454,1726895441414,-500.0,0.00014071,2]
[338712456,1726895441426,-502.42511759,0.00014071,2]
[338712458,1726895441436,-377.35177787,0.00014071,2]
[338712460,1726895441449,-500.0,0.00014071,2]
[338712462,1726895441458,-520.09644193,0.00014071,2]
[338712464,1726895441468,-500.0,0.00014071,2]
[338712466,1726895441477,-500.0,0.0001408,2]
[338712468,1726895441487,-491.78370507,0.0001408,2]
[338712470,1726895441498,-500.0,0.0001408,2]
[338712473,1726895441510,-204.64428072,0.0001408,2]
[338712475,1726895441519,-500.0,0.0001408,2]
[338712477,1726895441528,-268.44453336,0.0001408,2]
[338712479,1726895441538,-500.0,0.0001408,2]
[338712481,1726895441547,-500.0,0.0001408,2]
[338712483,1726895441557,-500.0,0.0001408,2]
[338712485,1726895441567,-500.0,0.0001408,2]
[338712486,1726895441577,-500.0,0.0001408,2]
[338712488,1726895441588,-500.0,0.0001408,2]
[338712491,1726895441599,-500.0,0.0001408,2]
[338712493,1726895441609,-500.0,0.0001408,2]
[338712495,1726895441618,-500.0,0.0001408,2]
[338712497,1726895441627,-500.0,0.0001408,2]
[338712499,1726895441636,-257.13303124,0.0001408,2]
[338712501,1726895441647,-248.19762056,0.0001408,2]
[338712503,1726895441656,-500.0,0.0001408,2]
[338712504,1726895441665,-486.7499739,0.0001408,2]
[338712506,1726895441674,-500.0,0.0001408,2]
[338712508,1726895441684,-569.0248751,0.0001408,2]
[338712510,1726895441693,-282.97283245,0.0001408,2]
[338712513,1726895441703,-157.23771833,0.00014081,2]
[338712515,1726895441713,-59663.245716,0.00014081,2]
[338712517,1726895441723,-59356.9255071,0.00014081,2]
[338712519,1726895441732,-500.0,0.00014081,2]
[338712521,1726895441742,-500.0,0.00014081,2]
[338712523,1726895441751,-500.0,0.00014081,2]
[338712525,1726895441761,-500.0,0.00014081,2]
[338712527,1726895441771,-500.0,0.00014081,2]
[338712529,1726895441782,-500.0,0.00014081,2]
[338712531,1726895441792,-500.0,0.00014082,2]
[338712533,1726895441803,-500.0,0.00014082,2]
[338712535,1726895441814,-524.76495992,0.00014082,2]
[338712537,1726895441824,-500.0,0.00014082,2]
[338712540,1726895441834,-500.0,0.00014082,2]
[338712542,1726895441846,-500.0,0.00014082,2]
[338712544,1726895441855,-500.0,0.00014082,2]
[338712546,1726895441865,-500.0,0.00014082,2]
[338712547,1726895441874,-500.0,0.00014082,2]
[338712549,1726895441883,-500.0,0.00014082,2]
[338712551,1726895441893,-500.0,0.00014082,2]
[338712553,1726895441903,-500.0,0.00014082,2]
[338712555,1726895441913,-289.34032142,0.00014082,2]
[338712557,1726895441924,-500.0,0.00014082,2]
[338712559,1726895441936,-506.36725357,0.00014082,2]
[338712561,1726895441946,-512.08319176,0.00014082,2]
[338712563,1726895441955,-500.0,0.00014082,2]
[338712565,1726895441964,-524.23712558,0.00014082,2]
[338712567,1726895441973,-500.0,0.00014082,2]
[338712569,1726895441983,-500.0,0.00014082,2]
[338712571,1726895441992,-432.72720782,0.00014082,2]
[338712573,1726895442002,-815.29,0.00014082,2]
[338712575,1726895442011,-519.00825817,0.00014082,2]
[338712577,1726895442020,-611.12173401,0.00014082,2]
[338712594,1726895442171,-500.0,0.00014082,2]
[338712596,1726895442180,-500.0,0.00014082,2]
[338712598,1726895442190,-500.0,0.00014082,2]
[338712600,1726895442199,-521.31954704,0.00014082,2]
[338712603,1726895442209,-500.0,0.00014082,2]
[338712605,1726895442218,-500.0,0.00014082,2]
[338712606,1726895442227,-500.0,0.00014082,2]
[338712608,1726895442236,-500.0,0.00014082,2]
[338712610,1726895442248,-500.0,0.00014082,2]
[338712612,1726895442258,-200.0,0.00014082,2]
[338712614,1726895442268,-500.0,0.00014082,2]
[338712616,1726895442279,-279.21334824,0.00014082,2]
[338712618,1726895442289,-500.0,0.00014082,2]
[338712620,1726895442301,-500.0,0.00014082,2]
[338712622,1726895442310,-790.23,0.00014082,2]
[338712625,1726895442323,-500.0,0.00014082,2]
[338712627,1726895442333,-500.0,0.00014082,2]
[338712629,1726895442344,-500.0,0.00014082,2]
[338712631,1726895442354,-59663.245716,0.00014082,2]
[338712633,1726895442363,-59356.9255071,0.00014082,2]
[338712635,1726895442373,-500.0,0.00014091,2]
[338712637,1726895442382,-500.0,0.00014091,2]
[338712639,1726895442391,-500.0,0.00014091,2]
[338712641,1726895442400,-500.0,0.00014091,2]
[338712643,1726895442411,-500.0,0.00014091,2]
[338712645,1726895442422,-500.0,0.00014091,2]
[338712647,1726895442432,-500.0,0.00014091,2]
[338712649,1726895442442,-500.0,0.00014091,2]
[338712651,1726895442452,-500.0,0.00014091,2]
[338712654,1726895442462,-500.0,0.00014092,2]
[338712657,1726895442472,-500.0,0.00014092,2]
[338712659,1726895442481,-500.0,0.00014092,2]
[338712662,1726895442492,-501.58428584,0.00014092,2]
[338712664,1726895442505,-342.78617405,0.00014092,2]
[338712667,1726895442515,-500.0,0.00014092,2]
[338712669,1726895442526,-500.0,0.00014092,2]
[338712671,1726895442536,-518.5881368,0.00014092,2]
[338712673,1726895442546,-173.75331766,0.00014092,2]
[338712675,1726895442555,-500.0,0.00014092,2]
[338712677,1726895442565,-500.0,0.00014092,2]
[338712679,1726895442574,-500.0,0.00014092,2]
[338712681,1726895442583,-500.0,0.00014092,2]
[338712683,1726895442592,-596.44147905,0.00014092,2]
[338712685,1726895442601,-500.0,0.00014092,2]
[338712687,1726895442612,-624.2938633,0.00014092,2]
[338712689,1726895442624,-500.0,0.00014092,2]
[338712691,1726895442634,-500.0,0.00014092,2]
[338712693,1726895442646,-500.0,0.00014092,2]
[338712695,1726895442655,-500.0,0.00014092,2]
[338712698,1726895442667,-500.0,0.00014092,2]
[338712700,1726895442677,-500.0,0.00014092,2]
[338712702,1726895442685,-871.82,0.00014092,2]
[338712704,1726895442695,-500.0,0.00014092,2]
[338712706,1726895442704,-500.0,0.00014092,2]
[338712707,1726895442713,-500.0,0.00014092,2]
[338712710,1726895442724,-500.0,0.00014092,2]
[338712712,1726895442734,-500.0,0.00014092,2]
[338712714,1726895442746,-207.55455039,0.00014092,2]
[338712716,1726895442756,-500.0,0.00014092,2]
[338712718,1726895442766,-595.87,0.00014092,2]
[338712720,1726895442775,-500.0,0.00014092,2]
[338712722,1726895442786,-500.0,0.00014092,2]
[338712724,1726895442796,-500.88805258,0.00014092,2]
[338712726,1726895442807,-500.0,0.00014092,2]
[338712728,1726895442817,-500.0,0.00014092,2]
[338712730,1726895442826,-500.0,0.00014092,2]
[338712732,1726895442835,-500.0,0.00014092,2]
[338712734,1726895442845,-500.0,0.00014092,2]
[338712736,1726895442854,-623.19364568,0.00014092,2]
[338712738,1726895442863,-648.53,0.00014092,2]
[338712740,1726895442872,-254.83491519,0.00014092,2]
[338712742,1726895442881,-652.65,0.00014092,2]
[338712744,1726895442890,-500.0,0.00014092,2]
[338712746,1726895442899,-500.0,0.00014092,2]
[338712748,1726895442908,-679.34,0.00014092,2]
[338712750,1726895442917,-501.2773307,0.00014092,2]
[338712752,1726895442927,-500.0,0.00014092,2]
[338712754,1726895442936,-572.96,0.00014092,2]
[338712756,1726895442945,-500.0,0.00014092,2]
[338712758,1726895442954,-613.94,0.00014092,2]
[338712760,1726895442964,-500.0,0.00014092,2]
[338712762,1726895442973,-500.0,0.00014092,2]
[338712764,1726895442982,-500.0,0.00014092,2]
[338712767,1726895442993,-500.0,0.00014092,2]
[338712768,1726895443003,-500.0,0.00014092,2]
[338712771,1726895443013,-500.0,0.00014092,2]
[338712773,1726895443022,-500.0,0.00014092,2]
[338712775,1726895443032,-500.0,0.00014092,2]
[338712777,1726895443043,-500.0,0.00014092,2]
[338712779,1726895443052,-500.0,0.00014092,2]
[338712781,1726895443062,-525.44065369,0.00014092,2]
[338712783,1726895443070,-500.10580415,0.00014092,2]
[338712785,1726895443079,-500.0,0.00014092,2]
[338712787,1726895443089,-500.0,0.00014092,2]
[338712789,1726895443097,-500.0,0.00014092,2]
[338712791,1726895443106,-500.0,0.00014092,2]
[338712793,1726895443116,-500.0,0.00014092,2]
[338712795,1726895443125,-500.0,0.00014092,2]
[338712797,1726895443136,-222.62049421,0.00014092,2]
[338712799,1726895443145,-505.56043026,0.00014092,2]
[338712801,1726895443156,-500.0,0.00014092,2]
[338712803,1726895443166,-604.51469182,0.00014092,2]
[338712805,1726895443175,-500.70306728,0.00014092,2]
[338712807,1726895443187,-562.79,0.00014092,2]
[338712809,1726895443196,-502.2835384,0.00014092,2]
[338712811,1726895443205,-500.0,0.00014092,2]
[338712813,1726895443215,-503.4571669,0.00014092,2]
[338712815,1726895443225,-500.0,0.00014092,2]
[338712818,1726895443234,-354.77177665,0.00014092,2]
[338712820,1726895443246,-500.0,0.00014092,2]
[338712822,1726895443258,-500.0,0.00014092,2]
[338712824,1726895443267,-500.0,0.00014092,2]
[338712826,1726895443277,-500.0,0.00014092,2]
[338712828,1726895443286,-500.0,0.00014092,2]
[338712830,1726895443296,-500.0,0.00014092,2]
[338712832,1726895443306,-500.0,0.00014092,2]
[338712834,1726895443315,-501.85434409,0.00014092,2]
[338712836,1726895443327,-500.0,0.00014092,2]
[338712838,1726895443337,-500.0,0.00014092,2]
[338712840,1726895443346,-500.0,0.00014092,2]
[338712842,1726895443355,-519.29705904,0.00014092,2]
[338712844,1726895443366,-506.36763715,0.00014092,2]
[338712846,1726895443375,-500.0,0.00014092,2]
[338712848,1726895443384,-500.0,0.00014092,2]
[338712850,1726895443393,-500.0,0.00014092,2]
[338712852,1726895443402,-500.0,0.00014092,2]
[338712854,1726895443411,-500.0,0.00014092,2]
[338712856,1726895443420,-503.57348026,0.00014092,2]
[338712858,1726895443430,-508.86491657,0.00014092,2]
[338712860,1726895443439,-549.40682635,0.00014092,2]
[338712862,1726895443448,-411.91952505,0.00014092,2]
[338712864,1726895443457,-501.5813928,0.00014092,2]
[338712866,1726895443466,-405.39156767,0.00014092,2]
[338712867,1726895443476,-500.0,0.00014092,2]
[338712869,1726895443485,-500.0,0.00014092,2]
[338712871,1726895443494,-501.50384832,0.00014092,2]
[338712873,1726895443504,-507.18329546,0.00014092,2]
[338712875,1726895443513,-500.0,0.00014092,2]
[338712877,1726895443522,-500.0,0.00014092,2]
[338712879,1726895443533,-500.0,0.00014092,2]
[338712881,1726895443542,-500.0,0.00014092,2]
[338712883,1726895443551,-500.0,0.00014092,2]
[338712885,1726895443560,-500.0,0.00014092,2]
[338712887,1726895443571,-419.34911458,0.00014092,2]
[338712889,1726895443580,-500.0,0.00014092,2]
[338712891,1726895443589,-500.0,0.00014092,2]
[338712893,1726895443598,-500.0,0.00014092,2]
[338712895,1726895443607,-500.0,0.00014092,2]
[338712897,1726895443618,-500.0,0.00014092,2]
[338712899,1726895443627,-500.0,0.00014092,2]
[338712901,1726895443636,-500.0,0.00014092,2]
[338712904,1726895443646,-500.0,0.00014092,2]
[338712906,1726895443655,-500.0,0.00014092,2]
[338712908,1726895443664,-502.78105398,0.00014092,2]
[338712910,1726895443675,-500.0,0.00014092,2]
[338712911,1726895443684,-500.0,0.00014092,2]
[338712913,1726895443694,-500.0,0.00014092,2]
[338712915,1726895443703,-500.0,0.00014092,2]
[338712917,1726895443712,-500.0,0.00014092,2]
[338712919,1726895443722,-500.0,0.00014092,2]
[338712921,1726895443732,-500.0,0.00014092,2]
[338712923,1726895443741,-503.67001357,0.00014092,2]
[338712925,1726895443751,-216.68081546,0.00014092,2]
[338712927,1726895443760,-153.99122,0.00014093,2]
[338712929,1726895443769,-59663.245716,0.00014093,2]
[338712931,1726895443778,-59356.9255071,0.00014093,2]
[338712933,1726895443788,-178.567788,0.000141,2]
[338712935,1726895443797,-178.567788,0.000141,2]
[338712937,1726895443806,-151.0,0.000141,2]
[338712939,1726895443815,-151.0,0.000141,2]
[338712941,1726895443825,-151.0,0.000141,2]
[338712943,1726895443834,-151.0,0.000141,2]
[338712945,1726895443844,-500.0,0.00014102,2]
[338712947,1726895443853,-500.0,0.00014102,2]
[338712949,1726895443862,-500.0,0.00014102,2]
[338712951,1726895443871,-493.26750583,0.00014103,2]
[338712954,1726895443881,-500.0,0.00014103,2]
[338712955,1726895443890,-500.0,0.00014103,2]
[338712958,1726895443899,-500.0,0.00014103,2]
[338712960,1726895443909,-500.0,0.00014103,2]
[338712962,1726895443917,-608.41577318,0.00014103,2]
[338712963,1726895443927,-500.0,0.00014103,2]
[338712966,1726895443937,-178.567788,0.00014133,2]
[338712968,1726895443946,-178.567788,0.00014133,2]
[338712969,1726895443955,-151.0,0.00014133,2]
[338712971,1726895443964,-151.0,0.00014133,2]
[338712973,1726895443973,-151.0,0.00014133,2]
[338712975,1726895443982,-151.0,0.00014133,2]
[338712977,1726895443991,-151.0,0.00014144,2]
[338712980,1726895444001,-151.0,0.00014144,2]
[338712982,1726895444010,-500.0,0.00014172,2]
[338712984,1726895444020,-500.0,0.00014172,2]
[338712986,1726895444030,-178.567788,0.00014173,2]
[338712988,1726895444040,-178.567788,0.00014173,2]
[338712990,1726895444049,-6888.754987,0.0001418,2]
[338712992,1726895444058,-151.0,0.00014279,2]
[338712994,1726895444067,-151.0,0.00014279,2]
[338712996,1726895444076,-151.0,0.00014279,2]
[338712998,1726895444085,-154.216194,0.00014279,2]